[Event "Titled Tuesday Blitz March 07 Early 2023"]
[White "Alahakoon, Isuru"]
[Black "De Souza, Cristiano Gomes"]
[WhiteFideId "9900993"]
[BlackFideId "2151758"]
[WhiteElo "1995"]
[BlackElo "2068"]
[Result "1-0"]
[Round "09"]
[TimeControl "180+2"]
[Date "2023.03.07"]
[WhiteClock "0:00:29"]
[BlackClock "0:00:33"]

1. Nf3 {[%clk 0:03:00]}  Nf6 {[%clk 0:02:59]} 2. d4 {[%clk 0:03:00]}  g6 {[%clk 0:02:59]} 3. Nc3 {[%clk 0:02:59]}  d6 {[%clk 0:03:00]} 4. e4 {[%clk 0:02:58]}  Bg7 {[%clk 0:03:00]} 5. Bf4 {[%clk 0:02:58]}  c6 {[%clk 0:02:57]} 6. Qd2 {[%clk 0:02:58]}  b5 {[%clk 0:02:55]} 7. Bd3 {[%clk 0:02:55]}  b4 {[%clk 0:02:55]} 8. Ne2 {[%clk 0:02:53]}  a5 {[%clk 0:02:54]} 9. Bh6 {[%clk 0:02:48]}  Bxh6 {[%clk 0:02:50]} 10. Qxh6 {[%clk 0:02:47]}  Ba6 {[%clk 0:02:51]} 11. O-O-O {[%clk 0:02:43]}  Qb6 {[%clk 0:02:45]} 12. e5 {[%clk 0:02:40]}  dxe5 {[%clk 0:02:42]} 13. dxe5 {[%clk 0:02:39]}  Nd5 {[%clk 0:02:42]} 14. Qg7 {[%clk 0:02:30]}  Rf8 {[%clk 0:02:40]} 15. e6 {[%clk 0:02:30]}  fxe6 {[%clk 0:02:26]} 16. Ned4 {[%clk 0:02:23]}  Rf6 {[%clk 0:02:15]} 17. Qg8+ {[%clk 0:01:56]}  Kd7 {[%clk 0:02:10]} 18. Ne5+ {[%clk 0:01:55]}  Kd6 {[%clk 0:02:08]} 19. Bxa6 {[%clk 0:01:15]}  Rxa6 {[%clk 0:01:58]} 20. Rhe1 {[%clk 0:01:04]}  Kc7 {[%clk 0:01:23]} 21. Nxe6+ {[%clk 0:00:55]}  Kb7 {[%clk 0:01:23]} 22. Nd8+ {[%clk 0:00:43]}  Kc7 {[%clk 0:01:09]} 23. Ndxc6 {[%clk 0:00:33]}  Nxc6 {[%clk 0:01:06]} 24. Nxc6 {[%clk 0:00:33]}  Qxc6 {[%clk 0:01:02]} 25. Rxd5 {[%clk 0:00:33]}  Ra7 {[%clk 0:00:35]} 26. Qd8+ {[%clk 0:00:29]}  Kb7 {[%clk 0:00:33]} 27. Rxe7+ {[%clk 0:00:29]} 1-0


[Site "https://www.chess.com"]

[Event "Titled Tuesday Blitz March 07 Early 2023"]
[White "Fernandez Siles, Luis"]
[Black "Torres Dominguez, David"]
[WhiteFideId "2209420"]
[BlackFideId "2220857"]
[WhiteElo "2186"]
[BlackElo "1999"]
[Result "1/2-1/2"]
[Round "09"]
[TimeControl "180+2"]
[Date "2023.03.07"]
[WhiteClock "0:00:11"]
[BlackClock "0:00:01"]

1. d4 {[%clk 0:03:00]}  e5 {[%clk 0:02:01]} 2. dxe5 {[%clk 0:02:58]}  d6 {[%clk 0:02:01]} 3. Nf3 {[%clk 0:02:53]}  Bg4 {[%clk 0:02:00]} 4. Bg5 {[%clk 0:02:48]}  Qd7 {[%clk 0:01:58]} 5. Nbd2 {[%clk 0:02:35]}  Nc6 {[%clk 0:01:56]} 6. h3 {[%clk 0:02:26]}  Bh5 {[%clk 0:01:54]} 7. exd6 {[%clk 0:01:53]}  f6 {[%clk 0:01:54]} 8. Bf4 {[%clk 0:01:50]}  Bxd6 {[%clk 0:01:54]} 9. Bxd6 {[%clk 0:01:49]}  Qxd6 {[%clk 0:01:53]} 10. e3 {[%clk 0:01:47]}  O-O-O {[%clk 0:01:51]} 11. Be2 {[%clk 0:01:47]}  f5 {[%clk 0:01:46]} 12. c3 {[%clk 0:01:47]}  f4 {[%clk 0:01:42]} 13. e4 {[%clk 0:01:37]}  Nf6 {[%clk 0:01:35]} 14. Qa4 {[%clk 0:01:34]}  Nd7 {[%clk 0:01:25]} 15. O-O-O {[%clk 0:01:14]}  Nc5 {[%clk 0:01:24]} 16. Qc2 {[%clk 0:01:14]}  Rhe8 {[%clk 0:01:10]} 17. Rhe1 {[%clk 0:01:10]}  Qf6 {[%clk 0:01:06]} 18. Nd4 {[%clk 0:00:54]}  Bxe2 {[%clk 0:01:00]} 19. Rxe2 {[%clk 0:00:48]}  Nxd4 {[%clk 0:00:57]} 20. cxd4 {[%clk 0:00:47]}  Qxd4 {[%clk 0:00:58]} 21. f3 {[%clk 0:00:42]}  Nd3+ {[%clk 0:00:53]} 22. Kb1 {[%clk 0:00:42]}  Nb4 {[%clk 0:00:49]} 23. Qc3 {[%clk 0:00:40]}  Qxc3 {[%clk 0:00:44]} 24. bxc3 {[%clk 0:00:40]}  Nc6 {[%clk 0:00:37]} 25. Ree1 {[%clk 0:00:41]}  Ne5 {[%clk 0:00:32]} 26. Nb3 {[%clk 0:00:30]}  b6 {[%clk 0:00:32]} 27. Rd4 {[%clk 0:00:27]}  c5 {[%clk 0:00:32]} 28. Rd5 {[%clk 0:00:27]}  Rxd5 {[%clk 0:00:27]} 29. exd5 {[%clk 0:00:28]}  Kd7 {[%clk 0:00:26]} 30. Nd2 {[%clk 0:00:24]}  Nd3 {[%clk 0:00:21]} 31. Re4 {[%clk 0:00:20]}  Rxe4 {[%clk 0:00:20]} 32. Nxe4 {[%clk 0:00:20]}  Ne1 {[%clk 0:00:19]} 33. c4 {[%clk 0:00:19]}  Nxg2 {[%clk 0:00:17]} 34. Kc2 {[%clk 0:00:19]}  Ne1+ {[%clk 0:00:17]} 35. Kd2 {[%clk 0:00:18]}  Nxf3+ {[%clk 0:00:17]} 36. Ke2 {[%clk 0:00:18]}  Ne5 {[%clk 0:00:15]} 37. Ng5 {[%clk 0:00:17]}  h6 {[%clk 0:00:14]} 38. Ne6 {[%clk 0:00:16]}  g5 {[%clk 0:00:13]} 39. Ng7 {[%clk 0:00:13]}  Nxc4 {[%clk 0:00:11]} 40. Nf5 {[%clk 0:00:13]}  Ne5 {[%clk 0:00:10]} 41. Nxh6 {[%clk 0:00:13]}  Kd6 {[%clk 0:00:10]} 42. h4 {[%clk 0:00:12]}  gxh4 {[%clk 0:00:09]} 43. Nf5+ {[%clk 0:00:12]}  Kxd5 {[%clk 0:00:09]} 44. Nxh4 {[%clk 0:00:13]}  b5 {[%clk 0:00:05]} 45. Nf5 {[%clk 0:00:13]}  a5 {[%clk 0:00:02]} 46. Ne7+ {[%clk 0:00:12]}  Kc4 {[%clk 0:00:02]} 47. Nc6 {[%clk 0:00:12]}  Kc3 {[%clk 0:00:02]} 48. Nxe5 {[%clk 0:00:13]}  b4 {[%clk 0:00:01]} 49. Nf3 {[%clk 0:00:10]}  c4 {[%clk 0:00:02]} 50. Nd2 {[%clk 0:00:10]}  b3 {[%clk 0:00:03]} 51. axb3 {[%clk 0:00:10]}  cxb3 {[%clk 0:00:02]} 52. Nb1+ {[%clk 0:00:11]}  Kc2 {[%clk 0:00:02]} 53. Na3+ {[%clk 0:00:11]}  Kc1 {[%clk 0:00:02]} 54. Nc4 {[%clk 0:00:11]}  b2 {[%clk 0:00:03]} 55. Nd2 {[%clk 0:00:11]}  b1=Q {[%clk 0:00:01]} 56. Nb3+ {[%clk 0:00:11]} 1/2-1/2


[Site "https://www.chess.com"]

[Event "Titled Tuesday Blitz March 07 Early 2023"]
[White "Ciuffoletti, Paolo"]
[Black "Liu, Yi"]
[WhiteFideId "807630"]
[BlackFideId "3210588"]
[WhiteElo "2143"]
[BlackElo "2264"]
[Result "0-1"]
[Round "09"]
[TimeControl "180+2"]
[Date "2023.03.07"]
[WhiteClock "0:00:09"]
[BlackClock "0:00:29"]

1. e4 {[%clk 0:03:00]}  c5 {[%clk 0:02:59]} 2. d4 {[%clk 0:03:00]}  cxd4 {[%clk 0:02:59]} 3. c3 {[%clk 0:03:00]}  dxc3 {[%clk 0:02:59]} 4. Nxc3 {[%clk 0:03:00]}  Nc6 {[%clk 0:02:59]} 5. Nf3 {[%clk 0:03:00]}  e6 {[%clk 0:02:59]} 6. Bc4 {[%clk 0:03:00]}  Bb4 {[%clk 0:02:58]} 7. O-O {[%clk 0:03:00]}  Nge7 {[%clk 0:02:57]} 8. Be3 {[%clk 0:02:36]}  O-O {[%clk 0:02:49]} 9. Rc1 {[%clk 0:02:35]}  Bxc3 {[%clk 0:02:37]} 10. Rxc3 {[%clk 0:02:29]}  d5 {[%clk 0:02:36]} 11. exd5 {[%clk 0:01:38]}  exd5 {[%clk 0:02:35]} 12. Be2 {[%clk 0:01:33]}  Be6 {[%clk 0:02:13]} 13. Qa4 {[%clk 0:01:24]}  Nf5 {[%clk 0:02:04]} 14. Rd1 {[%clk 0:01:02]}  Nxe3 {[%clk 0:01:47]} 15. Rxe3 {[%clk 0:01:01]}  Qb6 {[%clk 0:01:38]} 16. Rb3 {[%clk 0:00:57]}  Qa5 {[%clk 0:01:30]} 17. Qxa5 {[%clk 0:00:45]}  Nxa5 {[%clk 0:01:30]} 18. Rb5 {[%clk 0:00:45]}  b6 {[%clk 0:01:18]} 19. Nd4 {[%clk 0:00:37]}  Rac8 {[%clk 0:01:05]} 20. h3 {[%clk 0:00:34]}  Rc7 {[%clk 0:00:48]} 21. Bf3 {[%clk 0:00:34]}  Rd8 {[%clk 0:00:43]} 22. Nxe6 {[%clk 0:00:15]}  fxe6 {[%clk 0:00:44]} 23. Bg4 {[%clk 0:00:14]}  Rd6 {[%clk 0:00:36]} 24. Re1 {[%clk 0:00:13]}  Rcc6 {[%clk 0:00:32]} 25. Rb4 {[%clk 0:00:12]}  Nb7 {[%clk 0:00:31]} 26. Rf4 {[%clk 0:00:12]}  Nc5 {[%clk 0:00:29]} 27. b3 {[%clk 0:00:09]}  Nd3 {[%clk 0:00:29]} 0-1


[Site "https://www.chess.com"]

[Event "Titled Tuesday Blitz March 07 Early 2023"]
[White "Thiel, Thomas"]
[Black "Valle Maytin, Luis Enrique"]
[WhiteFideId "4615964"]
[BlackFideId "3503666"]
[WhiteElo "2239"]
[BlackElo "2225"]
[Result "0-1"]
[Round "09"]
[TimeControl "180+2"]
[Date "2023.03.07"]
[WhiteClock "0:00:02"]
[BlackClock "0:00:05"]

1. e4 {[%clk 0:03:00]}  c6 {[%clk 0:02:57]} 2. d4 {[%clk 0:02:59]}  d5 {[%clk 0:02:58]} 3. exd5 {[%clk 0:02:58]}  cxd5 {[%clk 0:02:59]} 4. c4 {[%clk 0:02:57]}  Nf6 {[%clk 0:02:59]} 5. Nc3 {[%clk 0:02:56]}  g6 {[%clk 0:02:55]} 6. Qb3 {[%clk 0:02:54]}  Bg7 {[%clk 0:02:53]} 7. cxd5 {[%clk 0:02:54]}  O-O {[%clk 0:02:53]} 8. Be2 {[%clk 0:02:54]}  a6 {[%clk 0:02:54]} 9. Bf3 {[%clk 0:02:47]}  Nbd7 {[%clk 0:02:49]} 10. Nge2 {[%clk 0:02:46]}  Rb8 {[%clk 0:02:46]} 11. Bf4 {[%clk 0:02:43]}  Ra8 {[%clk 0:02:44]} 12. O-O {[%clk 0:02:42]}  Re8 {[%clk 0:02:32]} 13. Rac1 {[%clk 0:02:37]}  Nf8 {[%clk 0:02:25]} 14. Be5 {[%clk 0:02:34]}  N6d7 {[%clk 0:02:13]} 15. Bxg7 {[%clk 0:02:30]}  Kxg7 {[%clk 0:02:14]} 16. Ne4 {[%clk 0:02:08]}  Nf6 {[%clk 0:02:10]} 17. Nxf6 {[%clk 0:02:06]}  Kxf6 {[%clk 0:02:07]} 18. Nc3 {[%clk 0:02:05]}  Kg7 {[%clk 0:02:00]} 19. Rfe1 {[%clk 0:02:03]}  Rb8 {[%clk 0:01:53]} 20. Na4 {[%clk 0:01:55]}  Qd6 {[%clk 0:01:38]} 21. Nb6 {[%clk 0:01:47]}  Bf5 {[%clk 0:01:35]} 22. a4 {[%clk 0:01:34]}  Nd7 {[%clk 0:01:26]} 23. Nxd7 {[%clk 0:01:32]}  Bxd7 {[%clk 0:01:21]} 24. a5 {[%clk 0:01:29]}  b6 {[%clk 0:01:16]} 25. axb6 {[%clk 0:01:27]}  Rxb6 {[%clk 0:01:17]} 26. Qa3 {[%clk 0:01:25]}  Qf6 {[%clk 0:01:11]} 27. Re5 {[%clk 0:01:08]}  Qf4 {[%clk 0:00:54]} 28. Rd1 {[%clk 0:00:49]}  e6 {[%clk 0:00:44]} 29. g3 {[%clk 0:00:32]}  Qf6 {[%clk 0:00:35]} 30. d6 {[%clk 0:00:30]}  Reb8 {[%clk 0:00:31]} 31. Rd2 {[%clk 0:00:27]}  Qd8 {[%clk 0:00:28]} 32. Re3 {[%clk 0:00:15]}  Bb5 {[%clk 0:00:25]} 33. d5 {[%clk 0:00:14]}  Rxd6 {[%clk 0:00:18]} 34. Qc3+ {[%clk 0:00:08]}  Kg8 {[%clk 0:00:19]} 35. Qe5 {[%clk 0:00:07]}  Rc8 {[%clk 0:00:13]} 36. Rd1 {[%clk 0:00:04]}  exd5 {[%clk 0:00:05]} 37. Rxd5 {[%clk 0:00:02]}  Rxd5 {[%clk 0:00:05]} 0-1


[Site "https://www.chess.com"]

[Event "Titled Tuesday Blitz March 07 Early 2023"]
[White "Mushini Ajay"]
[Black "Biriukov, Ilja"]
[WhiteFideId "35066188"]
[BlackFideId "4113373"]
[WhiteElo "2145"]
[BlackElo "2426"]
[Result "1-0"]
[Round "09"]
[TimeControl "180+2"]
[Date "2023.03.07"]
[WhiteClock "0:01:04"]
[BlackClock "0:00:29"]

1. e4 {[%clk 0:03:00]}  e6 {[%clk 0:02:52]} 2. d4 {[%clk 0:02:59]}  d5 {[%clk 0:02:53]} 3. Nc3 {[%clk 0:02:55]}  Bb4 {[%clk 0:02:52]} 4. e5 {[%clk 0:02:55]}  c5 {[%clk 0:02:51]} 5. a3 {[%clk 0:02:55]}  cxd4 {[%clk 0:02:51]} 6. axb4 {[%clk 0:02:50]}  dxc3 {[%clk 0:02:50]} 7. bxc3 {[%clk 0:02:51]}  Qc7 {[%clk 0:02:49]} 8. Nf3 {[%clk 0:02:45]}  Qxc3+ {[%clk 0:02:47]} 9. Bd2 {[%clk 0:02:45]}  Qc7 {[%clk 0:02:45]} 10. Bd3 {[%clk 0:02:44]}  Nc6 {[%clk 0:02:44]} 11. Qe2 {[%clk 0:02:34]}  Nge7 {[%clk 0:02:43]} 12. b5 {[%clk 0:02:33]}  Nd8 {[%clk 0:02:43]} 13. O-O {[%clk 0:02:23]}  Ng6 {[%clk 0:02:37]} 14. h4 {[%clk 0:02:20]}  a6 {[%clk 0:01:59]} 15. bxa6 {[%clk 0:02:08]}  bxa6 {[%clk 0:01:58]} 16. Ba5 {[%clk 0:02:08]}  Qe7 {[%clk 0:01:47]} 17. h5 {[%clk 0:01:55]}  Nf4 {[%clk 0:01:45]} 18. Qe3 {[%clk 0:01:54]}  Nxd3 {[%clk 0:01:43]} 19. cxd3 {[%clk 0:01:53]}  O-O {[%clk 0:01:42]} 20. Rfc1 {[%clk 0:01:43]}  Nb7 {[%clk 0:01:33]} 21. Rc7 {[%clk 0:01:40]}  Qe8 {[%clk 0:01:32]} 22. Bb4 {[%clk 0:01:40]}  Qd8 {[%clk 0:01:22]} 23. Rac1 {[%clk 0:01:22]}  Re8 {[%clk 0:01:19]} 24. h6 {[%clk 0:01:22]}  g6 {[%clk 0:01:15]} 25. Qf4 {[%clk 0:01:22]}  Rf8 {[%clk 0:00:56]} 26. Bxf8 {[%clk 0:01:09]}  Qxf8 {[%clk 0:00:57]} 27. Ng5 {[%clk 0:01:09]}  f5 {[%clk 0:00:33]} 28. exf6 {[%clk 0:01:04]}  Qd6 {[%clk 0:00:32]} 29. Rg7+ {[%clk 0:01:03]}  Kf8 {[%clk 0:00:29]} 30. Nxh7+ {[%clk 0:01:03]}  Ke8 {[%clk 0:00:29]} 31. f7+ {[%clk 0:01:04]} 1-0


[Site "https://www.chess.com"]

[Event "Titled Tuesday Blitz March 07 Early 2023"]
[White "Hrabinska, Myroslava"]
[Black "Comas Fabrego, Lluis"]
[WhiteFideId "14109190"]
[BlackFideId "2200325"]
[WhiteElo "2039"]
[BlackElo "2523"]
[Result "1-0"]
[Round "09"]
[TimeControl "180+2"]
[Date "2023.03.07"]
[WhiteClock "0:00:19"]
[BlackClock "0:00:41"]

1. e4 {[%clk 0:03:00]}  c5 {[%clk 0:02:59]} 2. b4 {[%clk 0:02:59]}  cxb4 {[%clk 0:02:58]} 3. a3 {[%clk 0:03:00]}  e6 {[%clk 0:02:57]} 4. axb4 {[%clk 0:02:59]}  Bxb4 {[%clk 0:02:57]} 5. c3 {[%clk 0:02:59]}  Bf8 {[%clk 0:02:57]} 6. d4 {[%clk 0:03:00]}  d5 {[%clk 0:02:57]} 7. e5 {[%clk 0:02:59]}  Nc6 {[%clk 0:02:57]} 8. Bd3 {[%clk 0:02:58]}  a6 {[%clk 0:02:57]} 9. Ne2 {[%clk 0:02:56]}  h6 {[%clk 0:02:57]} 10. O-O {[%clk 0:02:51]}  Bd7 {[%clk 0:02:57]} 11. f4 {[%clk 0:02:51]}  Nge7 {[%clk 0:02:55]} 12. Ba3 {[%clk 0:02:15]}  g6 {[%clk 0:02:53]} 13. Qe1 {[%clk 0:01:56]}  h5 {[%clk 0:02:48]} 14. Nd2 {[%clk 0:01:36]}  Nf5 {[%clk 0:02:47]} 15. Bxf8 {[%clk 0:01:32]}  Kxf8 {[%clk 0:02:46]} 16. Bxf5 {[%clk 0:01:18]}  gxf5 {[%clk 0:02:40]} 17. Kh1 {[%clk 0:01:16]}  Ne7 {[%clk 0:02:30]} 18. Rf3 {[%clk 0:01:13]}  Ng6 {[%clk 0:02:26]} 19. Rh3 {[%clk 0:01:12]}  Bb5 {[%clk 0:02:19]} 20. Rf3 {[%clk 0:00:45]}  Bxe2 {[%clk 0:01:56]} 21. Qxe2 {[%clk 0:00:45]}  Rc8 {[%clk 0:01:46]} 22. Nb3 {[%clk 0:00:44]}  Nh4 {[%clk 0:01:14]} 23. Rg3 {[%clk 0:00:41]}  Ng6 {[%clk 0:01:12]} 24. Rf3 {[%clk 0:00:35]}  Nh4 {[%clk 0:01:11]} 25. Rf2 {[%clk 0:00:34]}  Rxc3 {[%clk 0:01:06]} 26. Nc5 {[%clk 0:00:33]}  Qc7 {[%clk 0:00:51]} 27. Qb2 {[%clk 0:00:26]}  Rg8 {[%clk 0:00:41]} 28. Qxc3 {[%clk 0:00:19]} 1-0


[Site "https://www.chess.com"]

[Event "Titled Tuesday Blitz March 07 Early 2023"]
[White "Hartikainen, Jarmo"]
[Black "Melikhov, Evgeny V."]
[WhiteFideId "503134"]
[BlackFideId "4122046"]
[WhiteElo "2202"]
[BlackElo "2158"]
[Result "0-1"]
[Round "09"]
[TimeControl "180+2"]
[Date "2023.03.07"]
[WhiteClock "0:00:02"]
[BlackClock "0:00:13"]

1. e4 {[%clk 0:01:54]}  c5 {[%clk 0:02:58]} 2. c3 {[%clk 0:01:53]}  d5 {[%clk 0:02:58]} 3. exd5 {[%clk 0:01:53]}  Qxd5 {[%clk 0:02:58]} 4. d4 {[%clk 0:01:54]}  Nf6 {[%clk 0:02:58]} 5. Nf3 {[%clk 0:01:54]}  Bg4 {[%clk 0:02:57]} 6. Be2 {[%clk 0:01:53]}  e6 {[%clk 0:02:57]} 7. Na3 {[%clk 0:01:53]}  Nc6 {[%clk 0:02:54]} 8. Be3 {[%clk 0:01:48]}  cxd4 {[%clk 0:02:54]} 9. Nb5 {[%clk 0:01:47]}  Qd8 {[%clk 0:02:50]} 10. Nbxd4 {[%clk 0:01:47]}  Nxd4 {[%clk 0:02:49]} 11. Nxd4 {[%clk 0:01:47]}  Bxe2 {[%clk 0:02:47]} 12. Qxe2 {[%clk 0:01:47]}  a6 {[%clk 0:02:45]} 13. O-O {[%clk 0:01:47]}  Be7 {[%clk 0:02:34]} 14. Rfd1 {[%clk 0:01:47]}  Qc7 {[%clk 0:02:33]} 15. a4 {[%clk 0:01:45]}  O-O {[%clk 0:02:33]} 16. a5 {[%clk 0:01:37]}  Nd5 {[%clk 0:02:31]} 17. Nc2 {[%clk 0:01:28]}  Nxe3 {[%clk 0:02:26]} 18. Qxe3 {[%clk 0:01:26]}  Bc5 {[%clk 0:02:11]} 19. Qf3 {[%clk 0:01:22]}  b5 {[%clk 0:02:05]} 20. Nd4 {[%clk 0:01:21]}  Bxd4 {[%clk 0:02:01]} 21. Rxd4 {[%clk 0:01:20]}  Rad8 {[%clk 0:02:00]} 22. Qd1 {[%clk 0:00:52]}  e5 {[%clk 0:01:59]} 23. Rd5 {[%clk 0:00:48]}  Rxd5 {[%clk 0:01:56]} 24. Qxd5 {[%clk 0:00:48]}  Rd8 {[%clk 0:01:56]} 25. Qe4 {[%clk 0:00:43]}  Qxa5 {[%clk 0:01:47]} 26. Re1 {[%clk 0:00:36]}  Qc7 {[%clk 0:01:41]} 27. h3 {[%clk 0:00:32]}  f6 {[%clk 0:01:39]} 28. h4 {[%clk 0:00:29]}  Qd6 {[%clk 0:01:35]} 29. h5 {[%clk 0:00:29]}  Qd5 {[%clk 0:01:32]} 30. Qf5 {[%clk 0:00:28]}  h6 {[%clk 0:01:28]} 31. Qg6 {[%clk 0:00:27]}  Qf7 {[%clk 0:01:24]} 32. Qf5 {[%clk 0:00:26]}  Qd7 {[%clk 0:01:22]} 33. Qg6 {[%clk 0:00:25]}  a5 {[%clk 0:01:05]} 34. Re3 {[%clk 0:00:25]}  a4 {[%clk 0:00:56]} 35. Rg3 {[%clk 0:00:24]}  Kh8 {[%clk 0:00:54]} 36. Qe4 {[%clk 0:00:16]}  Qd1+ {[%clk 0:00:52]} 37. Kh2 {[%clk 0:00:16]}  Qxh5+ {[%clk 0:00:52]} 38. Rh3 {[%clk 0:00:16]}  Qf7 {[%clk 0:00:51]} 39. Qc6 {[%clk 0:00:15]}  Qd7 {[%clk 0:00:50]} 40. Qe4 {[%clk 0:00:14]}  Qd3 {[%clk 0:00:31]} 41. Qc6 {[%clk 0:00:10]}  Qd5 {[%clk 0:00:28]} 42. Qc7 {[%clk 0:00:07]}  Kh7 {[%clk 0:00:23]} 43. Rg3 {[%clk 0:00:05]}  Rd7 {[%clk 0:00:23]} 44. Qc8 {[%clk 0:00:04]}  Qd6 {[%clk 0:00:21]} 45. Qe8 {[%clk 0:00:04]}  Re7 {[%clk 0:00:16]} 46. Qg6+ {[%clk 0:00:04]}  Kg8 {[%clk 0:00:16]} 47. Qf5 {[%clk 0:00:04]}  Qe6 {[%clk 0:00:15]} 48. Qg6 {[%clk 0:00:04]}  Kh8 {[%clk 0:00:14]} 49. Qh5 {[%clk 0:00:02]}  e4 {[%clk 0:00:14]} 50. Rg6 {[%clk 0:00:02]}  Qe5+ {[%clk 0:00:13]} 51. Qxe5 {[%clk 0:00:01]}  Rxe5 {[%clk 0:00:14]} 52. Rg3 {[%clk 0:00:02]}  f5 {[%clk 0:00:13]} 53. Re3 {[%clk 0:00:01]}  f4 {[%clk 0:00:13]} 54. Re1 {[%clk 0:00:01]}  e3 {[%clk 0:00:14]} 55. fxe3 {[%clk 0:00:01]}  fxe3 {[%clk 0:00:14]} 56. Kg3 {[%clk 0:00:01]}  g5 {[%clk 0:00:13]} 57. Kf3 {[%clk 0:00:02]}  Kg7 {[%clk 0:00:13]} 0-1


[Site "https://www.chess.com"]

[Event "Titled Tuesday Blitz March 07 Early 2023"]
[White "Osuna Vega, Enrique"]
[Black "Wilson, Elvin"]
[WhiteFideId "2219549"]
[BlackFideId "2014874"]
[WhiteElo "2174"]
[BlackElo "2266"]
[Result "0-1"]
[Round "09"]
[TimeControl "180+2"]
[Date "2023.03.07"]
[WhiteClock "0:00:05"]
[BlackClock "0:00:38"]

1. e4 {[%clk 0:02:57]}  e6 {[%clk 0:02:59]} 2. d4 {[%clk 0:02:57]}  d5 {[%clk 0:02:57]} 3. Nc3 {[%clk 0:02:57]}  Bb4 {[%clk 0:02:54]} 4. Ne2 {[%clk 0:02:57]}  dxe4 {[%clk 0:02:50]} 5. a3 {[%clk 0:02:57]}  Bxc3+ {[%clk 0:02:50]} 6. Nxc3 {[%clk 0:02:57]}  Nc6 {[%clk 0:02:49]} 7. Bb5 {[%clk 0:02:53]}  Ne7 {[%clk 0:02:47]} 8. Nxe4 {[%clk 0:02:51]}  O-O {[%clk 0:02:47]} 9. Be3 {[%clk 0:02:47]}  f5 {[%clk 0:02:40]} 10. Bxc6 {[%clk 0:02:02]}  Nxc6 {[%clk 0:02:31]} 11. Ng5 {[%clk 0:00:57]}  f4 {[%clk 0:02:21]} 12. Qh5 {[%clk 0:00:56]}  h6 {[%clk 0:02:22]} 13. h4 {[%clk 0:00:45]}  fxe3 {[%clk 0:02:11]} 14. Qg6 {[%clk 0:00:43]}  exf2+ {[%clk 0:01:46]} 15. Kf1 {[%clk 0:00:40]}  hxg5 {[%clk 0:01:33]} 16. hxg5 {[%clk 0:00:40]}  Rf5 {[%clk 0:01:23]} 17. Qh7+ {[%clk 0:00:21]}  Kf8 {[%clk 0:01:19]} 18. g6 {[%clk 0:00:12]}  Qxd4 {[%clk 0:01:06]} 19. Rh3 {[%clk 0:00:07]}  b6 {[%clk 0:00:46]} 20. Rd3 {[%clk 0:00:05]}  Ba6 {[%clk 0:00:45]} 21. Rd1 {[%clk 0:00:05]}  Rd8 {[%clk 0:00:38]} 0-1


[Site "https://www.chess.com"]

[Event "Titled Tuesday Blitz March 07 Early 2023"]
[White "Aanan, Shafiuddin"]
[Black "Prieto Aranguren, Alain"]
[WhiteFideId "3242633"]
[BlackFideId "2268906"]
[WhiteElo "1648"]
[BlackElo "2209"]
[Result "1-0"]
[Round "09"]
[TimeControl "180+2"]
[Date "2023.03.07"]
[WhiteClock "0:00:19"]
[BlackClock "0:01:19"]

1. e4 {[%clk 0:01:42]}  c6 {[%clk 0:02:57]} 2. d4 {[%clk 0:01:42]}  d5 {[%clk 0:02:57]} 3. e5 {[%clk 0:01:42]}  c5 {[%clk 0:02:56]} 4. dxc5 {[%clk 0:01:42]}  Nc6 {[%clk 0:02:56]} 5. Nf3 {[%clk 0:01:41]}  Bg4 {[%clk 0:02:56]} 6. Bb5 {[%clk 0:01:41]}  e6 {[%clk 0:02:55]} 7. Be3 {[%clk 0:01:39]}  Ne7 {[%clk 0:02:54]} 8. c3 {[%clk 0:01:37]}  Nf5 {[%clk 0:02:54]} 9. Bxc6+ {[%clk 0:01:37]}  bxc6 {[%clk 0:02:53]} 10. Bd4 {[%clk 0:01:37]}  Nxd4 {[%clk 0:02:53]} 11. Qxd4 {[%clk 0:01:33]}  Bxf3 {[%clk 0:02:52]} 12. gxf3 {[%clk 0:01:33]}  Qg5 {[%clk 0:02:48]} 13. Nd2 {[%clk 0:01:26]}  Be7 {[%clk 0:02:44]} 14. f4 {[%clk 0:01:20]}  Qf5 {[%clk 0:02:42]} 15. O-O {[%clk 0:01:14]}  O-O {[%clk 0:02:41]} 16. Rfe1 {[%clk 0:01:12]}  Rab8 {[%clk 0:02:35]} 17. b4 {[%clk 0:01:11]}  f6 {[%clk 0:02:31]} 18. Re3 {[%clk 0:00:47]}  Kh8 {[%clk 0:02:29]} 19. Rae1 {[%clk 0:00:34]}  fxe5 {[%clk 0:02:13]} 20. Qxe5 {[%clk 0:00:33]}  Qxf4 {[%clk 0:02:00]} 21. Qxf4 {[%clk 0:00:33]}  Rxf4 {[%clk 0:02:00]} 22. Rxe6 {[%clk 0:00:34]}  Bh4 {[%clk 0:01:59]} 23. Re8+ {[%clk 0:00:33]}  Rf8 {[%clk 0:01:59]} 24. Rxb8 {[%clk 0:00:33]}  Rxb8 {[%clk 0:01:59]} 25. Nf3 {[%clk 0:00:33]}  Bf6 {[%clk 0:01:58]} 26. Nd4 {[%clk 0:00:33]}  Bxd4 {[%clk 0:01:32]} 27. cxd4 {[%clk 0:00:32]}  Kg8 {[%clk 0:01:28]} 28. a3 {[%clk 0:00:31]}  a5 {[%clk 0:01:27]} 29. bxa5 {[%clk 0:00:27]}  Rb3 {[%clk 0:01:26]} 30. Re6 {[%clk 0:00:27]}  Rxa3 {[%clk 0:01:25]} 31. Rxc6 {[%clk 0:00:27]}  Ra4 {[%clk 0:01:22]} 32. a6 {[%clk 0:00:24]}  Kf7 {[%clk 0:01:22]} 33. Rc7+ {[%clk 0:00:20]}  Ke6 {[%clk 0:01:21]} 34. a7 {[%clk 0:00:20]}  Kf5 {[%clk 0:01:21]} 35. Rxg7 {[%clk 0:00:20]}  Ke4 {[%clk 0:01:20]} 36. c6 {[%clk 0:00:20]}  Kxd4 {[%clk 0:01:19]} 37. Rg4+ {[%clk 0:00:19]} 1-0


[Site "https://www.chess.com"]

[Event "Titled Tuesday Blitz March 07 Early 2023"]
[White "Zaichenko, Daria"]
[Black "Johnson, Ben"]
[WhiteFideId "4197453"]
[BlackFideId "2010917"]
[WhiteElo "2039"]
[BlackElo "2153"]
[Result "1/2-1/2"]
[Round "09"]
[TimeControl "180+2"]
[Date "2023.03.07"]
[WhiteClock "0:00:49"]
[BlackClock "0:00:08"]

1. e4 {[%clk 0:02:58]}  c5 {[%clk 0:02:59]} 2. Nf3 {[%clk 0:02:58]}  Nc6 {[%clk 0:02:59]} 3. d4 {[%clk 0:02:59]}  cxd4 {[%clk 0:02:59]} 4. Nxd4 {[%clk 0:02:59]}  g6 {[%clk 0:02:59]} 5. c4 {[%clk 0:02:54]}  Bg7 {[%clk 0:02:59]} 6. Be3 {[%clk 0:02:54]}  Nf6 {[%clk 0:02:59]} 7. Nc3 {[%clk 0:02:54]}  O-O {[%clk 0:02:59]} 8. Bd3 {[%clk 0:02:52]}  Ng4 {[%clk 0:02:22]} 9. Qxg4 {[%clk 0:02:34]}  Nxd4 {[%clk 0:02:22]} 10. Bxd4 {[%clk 0:02:33]}  Bxd4 {[%clk 0:02:21]} 11. O-O {[%clk 0:02:28]}  Bxc3 {[%clk 0:02:04]} 12. bxc3 {[%clk 0:02:28]}  d6 {[%clk 0:02:03]} 13. Qh4 {[%clk 0:02:26]}  Be6 {[%clk 0:01:59]} 14. Rad1 {[%clk 0:02:25]}  Qa5 {[%clk 0:01:54]} 15. Qxe7 {[%clk 0:02:17]}  Qc5 {[%clk 0:01:36]} 16. Qxb7 {[%clk 0:02:13]}  Rab8 {[%clk 0:01:28]} 17. Qe7 {[%clk 0:02:08]}  Rb2 {[%clk 0:01:23]} 18. Rde1 {[%clk 0:01:57]}  Rd2 {[%clk 0:00:54]} 19. Re3 {[%clk 0:01:56]}  Bxc4 {[%clk 0:00:44]} 20. Bxc4 {[%clk 0:01:48]}  Qxc4 {[%clk 0:00:45]} 21. Qxa7 {[%clk 0:01:47]}  Rxa2 {[%clk 0:00:42]} 22. Qe7 {[%clk 0:01:38]}  Qc6 {[%clk 0:00:28]} 23. Rd3 {[%clk 0:01:36]}  Re8 {[%clk 0:00:25]} 24. Rxd6 {[%clk 0:01:27]}  Rxe7 {[%clk 0:00:20]} 25. Rxc6 {[%clk 0:01:27]}  Rxe4 {[%clk 0:00:20]} 26. g3 {[%clk 0:01:25]}  Rc2 {[%clk 0:00:19]} 27. Kg2 {[%clk 0:01:21]}  Kf8 {[%clk 0:00:18]} 28. Rc7 {[%clk 0:01:12]}  Re3 {[%clk 0:00:12]} 29. Rd1 {[%clk 0:00:53]}  Rexc3 {[%clk 0:00:09]} 30. Rxc3 {[%clk 0:00:51]}  Rxc3 {[%clk 0:00:09]} 31. Rd8+ {[%clk 0:00:51]}  Ke7 {[%clk 0:00:08]} 32. Rd4 {[%clk 0:00:49]}  h5 {[%clk 0:00:08]} 1/2-1/2


[Site "https://www.chess.com"]